Cogmind - Beta 16.1 *** ADVENTURER MODE // 2026.03.05 @ 18:51:07 Player: bean Result: Destroyed by G-34 Mercenary with Small Laser Performance ------------- Evolutions (1) 500 Regions Visited (3) 600 Robots Destroyed (21) 105 Value Destroyed (481) 481 Prototype IDs (0) 0 Alien Tech Used (0) 0 Bonus (0) 0 TOTAL SCORE: 1686 Bonus ------- None Cogmind --------- Core Integrity 0/400 Matter 300/300 Energy 88/100 System Corruption 5% Temperature Cool (78) Movement Core (350) Ox6 Location -9/Materials Parts ------- > --- POWER (2) -------- (None) > --- PROPULSION (2) --- (None) > --- UTILITY (3) ------ Large Storage Unit > --- WEAPON (2) ------- (None) > --- INVENTORY (15) --- Small Laser Peak State ------------ > --- POWER ------------ Ion Engine Light Nuclear Core > --- PROPULSION ------- Aluminum Leg Aluminum Leg > --- UTILITY ---------- Large Storage Unit Sensor Array Improved Terrain Scanner > --- WEAPON ----------- Medium Laser Light Cannon > --- INVENTORY -------- Ion Engine Aluminum Leg Aluminum Leg Aluminum Leg Signal Interpreter Small Laser Beam Cannon [Rating: 13] Favorites ----------- Power Ion Engine Engine Ion Engine Power Core Light Nuclear Core Propulsion Aluminum Leg Leg Aluminum Leg Utility Large Storage Unit Device Sensor Array Storage Large Storage Unit Processor Signal Interpreter Weapon Medium Laser Energy Gun Medium Laser Energy Cannon Beam Cannon Ballistic Cannon Light Cannon Build | -11 -10 -10 -9 ------- Run | Yrd Mat Min Mat Slots Evolved 2 | . . . 2 Power 1 | . . . 1 Propulsion . | . . . . Utility 1 | . . . 1 Weapon . | . . . . Parts Attached 19 | 6 3 3 7 Power 4 | 1 . 1 2 Engine 3 | 1 . 1 1 Core 1 | . . . 1 Reactor . | . . . . Propulsion 5 | 2 . 2 1 Treads . | . . . . Leg 5 | 2 . 2 1 Wheel . | . . . . Hover . | . . . . Flight . | . . . . Utility 5 | 1 2 . 2 Device 2 | . 1 . 1 Storage 2 | 1 1 . . Processor 1 | . . . 1 Hackware . | . . . . Protection . | . . . . Artifact . | . . . . Weapon 5 | 2 1 . 2 Energy Gun 3 | 2 . . 1 Energy Cannon 1 | . . . 1 Ballistic Gun . | . . . . Ballistic Cannon 1 | . 1 . . Launcher . | . . . . Special Weapon . | . . . . Impact Weapon . | . . . . Slashing Weapon . | . . . . Piercing Weapon . | . . . . Special Melee Weapon . | . . . . Unidentified Prototypes . | . . . . Parts Lost 14 | . . . 14 Power 3 | . . . 3 Propulsion 5 | . . . 5 Utility 3 | . . . 3 Weapon 3 | . . . 3 Highest Loss Streak 7 | . . . 7 To Critical Strikes 1 | . . . 1 Average Backups 6 | 4 5 8 5 Power 1 | . 1 2 . Propulsion 2 | 1 2 3 2 Utility . | . . 1 . Weapon 1 | 1 1 2 1 Tool/Special . | . . . . Unused Backups 2 | . 2 . . Power . | . . . . Propulsion 2 | . 2 . . Utility . | . . . . Weapon . | . . . . Tool/Special . | . . . . Average Slot Usage (%) 88 | . 87 100 78 Engine 12 | . 14 14 9 Core 1 | . . . 7 Leg 25 | . 28 28 18 Device 8 | . 1 14 13 Storage 13 | . 14 14 11 Energy Gun 16 | . 23 14 6 Ballistic Cannon 8 | . 4 14 7 Peak Build Rating 13 | 6 8 8 13 Average Rating 7 | 3 6 8 9 On Entrance 5 | . 6 8 8 Avg Prop Armor Cover (%) . | . . . . Naked Turns . | . . . . Heaviest Build 37 | 14 31 31 37 Greatest Support 20 | 20 20 20 20 Greatest Overweight (x) 7 | 1 1 1 7 Average Overweight (x) . | . . 1 1 Largest Inventory Capacity 15 | 8 15 15 15 Average Capacity 14 | 7 14 15 15 Most Carried 11 | 8 8 11 8 Average Carried 6 | 4 5 8 5 Final Capacity 15 | 8 15 15 15 Final Carried 9 | 4 8 9 1 Class Distribution -------------------- 100% | Mutant Dominant Class ---------------- Mutant | -10/Materials Mutant | -10/Mines Mutant | -9/Materials Resources | -11 -10 -10 -9 ----------- Run | Yrd Mat Min Mat Matter Collected 464 | 245 53 78 88 Remotely . | . . . . Salvage Created 571 | . 270 90 211 Parts 37 | . 15 6 16 Haulers Intercepted . | . . . . Recyclers Shooed . | . . . . Parts Field Recycled . | . . . . Retrieved Matter . | . . . . Parts Self-Destructed . | . . . . Prevented . | . . . . Parts Restored . | . . . . Kills | -11 -10 -10 -9 ------- Run | Yrd Mat Min Mat Combat Hostiles Destroyed 21 | . 8 5 8 Guns 11 | . 6 1 4 Cannons 9 | . 1 4 4 Classes Destroyed 6 | . 3 1 2 Watcher 1 | . 1 . . Swarmer 11 | . 3 3 5 Grunt 7 | . 5 1 1 Brawler 1 | . . . 1 Sentry 1 | . . . 1 Assembled 1 | . . 1 . Best Kill Streak 4 | . 2 3 4 Combat Bots Only 4 | . 2 3 4 Max Kills in Single Turn 2 | . 1 1 2 Gunslinging . | . . . . Exploded . | . . . . Melee . | . . . . Uniques/NPCs Destroyed . | . . . . Combat | -11 -10 -10 -9 -------- Run | Yrd Mat Min Mat Hostile Shots Fired 253 | . 32 19 202 Missed 74 | . 8 6 60 Hits 179 | . 24 13 142 Melee 12 | . . 2 10 Projectile 167 | . 24 11 132 Critical Strikes 6 | . . . 6 Damage Taken 1749 | . 196 113 1440 Core 448 | . 29 12 407 Absorbed by Shields . | . . . . Ignored by Resistances 531 | . 66 35 430 Regen/Repaired (Parts) 23 | . . . 23 Core Remaining (%) 91 | 100 . 83 . Volleys Fired 44 | . 20 7 17 Largest 2 | . 2 2 2 Hottest 100 | . 100 80 80 Shots Fired 82 | . 40 14 28 Gun 53 | . 35 7 11 Cannon 29 | . 5 7 17 Launcher . | . . . . Special . | . . . . Kinetic 23 | . 5 7 11 Thermal 59 | . 35 7 17 Explosive . | . . . . Electromagnetic . | . . . . Robot Hit Streak 10 | . 10 3 8 Robot Miss Streak 2 | . 1 2 2 Penetration Max . | . . . . Secondary Targets 2 | . 2 . . Max Gunslinging Chain 1 | . 1 . . Shots Hit Robots 58 | . 30 8 20 Core Hits 31 | . 15 6 10 Critical Kills . | . . . . Critical Parts Destroyed . | . . . . Critical Strikes 3 | . 2 . 1 Burn 2 | . 1 . 1 Blast 1 | . 1 . . Melee Attacks . | . . . . Impact . | . . . . Slashing . | . . . . Piercing . | . . . . Sneak Attacks . | . . . . Combat Hostiles . | . . . . Follow-up Attacks . | . . . . Damage Inflicted 840 | . 390 127 323 Guns 473 | . 323 37 113 Cannons 364 | . 67 88 209 Explosions . | . . . . Melee . | . . . . Ramming 3 | . . 2 1 Kinetic 260 | . 67 88 105 Thermal 577 | . 323 37 217 Explosive . | . . . . Electromagnetic . | . . . . Impact . | . . . . Slashing . | . . . . Piercing . | . . . . Highest Corruption 5 | . . . 5 Average Corruption 4 | . . . 4 Corruption Purged . | . . . . Corruption Blocked . | . . . . Overload Shots . | . . . . Overflow Damage . | . . . . Projectiles . | . . . . Explosions . | . . . . Melee . | . . . . Knockbacks 2 | . 1 1 . Impact . | . . . . Kinetic 2 | . 1 1 . Secondary . | . . . . Self-Inflicted Damage . | . . . . Shots . | . . . . Rammed . | . . . . Targets Rammed 3 | . 1 1 1 Kicked 3 | . 1 1 1 Crushed . | . . . . Highest Temperature 211 | . 211 90 126 Average Temperature 65 | . 77 38 56 Received Heat Transfer 705 | . 105 . 600 Siege Activations . | . . . . Martial Activations . | . . . . Shielding Activations . | . . . . Robots Disrupted . | . . . . Combat Hostiles . | . . . . Robots Corrupted . | . . . . Combat Hostiles . | . . . . Parts Fried . | . . . . Impact Corruptions . | . . . . Robots Melted 1 | . 1 . . Combat Hostiles 1 | . 1 . . Parts Melted 4 | . 2 . 2 Heat Transferred 1776 | . 1036 111 629 Parts Sabotaged . | . . . . Parts Stolen . | . . . . Parts Stripped . | . . . . Power Chain Reactions . | . . . . Alert | -11 -10 -10 -9 ------- Run | Yrd Mat Min Mat Maximum Alert Level . | . . . . Low Security (%) 100 | 100 100 100 100 Level 1 . | . . . . Level 2 . | . . . . Level 3 . | . . . . Level 4 . | . . . . Level 5 . | . . . . High Security . | . . . . Max Security . | . . . . Peak Influence 95 | . 80 79 95 Initial . | . . . . Average 17 | . 17 13 24 Influence Increases 657 | . 233 99 325 Destroy 0b10 Robot/C 400 | . 160 80 160 Destroy 0b10 Robot/NC 5 | . 5 . . Destroy Leader 82 | . 42 10 30 Successful Hack 10 | . 10 . . Disable Machine 9 | . . 9 . Destroy Structure 1 | . 1 . . Partial Spotted 15 | . 15 . . Lose Combat Pursuer 135 | . . . 135 Influence Decreases 597 | . 233 99 265 Time Decay 497 | . 233 99 165 Lost Part 100 | . . . 100 Squads Dispatched 2 | . 1 . 1 Investigation 1 | . 1 . . Extermination . | . . . . Reinforcement 1 | . . . 1 Assault . | . . . . Garrison . | . . . . Intercept . | . . . . Searches Triggered . | . . . . Construction Impeded . | . . . . Haulers Reinforced . | . . . . Active Scanning Responses . | . . . . Cargo Convoy Interrupts . | . . . . Stealth | -11 -10 -10 -9 --------- Run | Yrd Mat Min Mat Distress Signals 2 | . 1 1 . Communications Jammed . | . . . . Distress Signals . | . . . . Times Spotted 44 | . 16 5 23 Peak Tracking Total 10 | . 4 3 10 Tactical Retreats 3 | . . . 3 Traps | -11 -10 -10 -9 ------- Run | Yrd Mat Min Mat Traps Triggered 1 | . 1 . . Indirectly . | . . . . Trap Hack Attempts . | . . . . Triggered . | . . . . Disarmed . | . . . . Reprogrammed . | . . . . Reused . | . . . . Traps Extracted . | . . . . Installed . | . . . . Triggered . | . . . . Machines | -11 -10 -10 -9 ---------- Run | Yrd Mat Min Mat Machines Disabled 1 | . . 1 . Max in Single Turn 1 | . . 1 . Machines Repaired . | . . . . Machines Dismantled . | . . . . Machines Sabotaged . | . . . . Overloaded Fab Kills . | . . . . Hacking | -11 -10 -10 -9 --------- Run | Yrd Mat Min Mat Machines Accessed 3 | . 2 . 1 Terminals 2 | . 2 . . Fabricators . | . . . . Repair Stations 1 | . . . 1 Recycling Units . | . . . . Scanalyzers . | . . . . Garrison Access . | . . . . Total Hacks 4 | . 2 . 2 Successful 4 | . 2 . 2 Failed . | . . . . Catastrophic . | . . . . Database Lockouts . | . . . . Manual . | . . . . Terminals 2 | . 2 . . Fabricators . | . . . . Repair Stations 2 | . . . 2 Recycling Units . | . . . . Scanalyzers . | . . . . Garrison Access . | . . . . Terminal Hacks 2 | . 2 . . Branch Access Points 1 | . 1 . . Zone Layout 1 | . 1 . . Fabricator Hacks . | . . . . Repair Station Hacks 2 | . . . 2 Scan Component 1 | . . . 1 Repair 1 | . . . 1 Recycling Unit Hacks . | . . . . Scanalyzer . | . . . . Garrison Access Hacks . | . . . . Unauthorized Hacks . | . . . . Terminals . | . . . . Fabricators . | . . . . Repair Stations . | . . . . Recycling Units . | . . . . Scanalyzers . | . . . . Garrison Access . | . . . . Data Cores Recovered . | . . . . Used . | . . . . Hacking Detections . | . . . . Full Trace Events . | . . . . Feedback Events . | . . . . Feedback Blocked . | . . . . Robot Schematics Acquired . | . . . . Robots Built . | . . . . Authchips . | . . . . Time . | . . . . Total Robot Build Rating . | . . . . Part Schematics Acquired . | . . . . Parts Built . | . . . . Authchips . | . . . . Time . | . . . . Total Part Build Rating . | . . . . Part Studies Acquired . | . . . . Parts Repaired 1 | . . . 1 Time 26 | . . . 26 Parts Recycled . | . . . . Recycled Matter . | . . . . Retrieved Matter . | . . . . Retrieved Components . | . . . . Parts Scanalyzed . | . . . . Part Schematics Acquired . | . . . . Parts Damaged . | . . . . Bothacking | -11 -10 -10 -9 ------------ Run | Yrd Mat Min Mat Used RIF Installer . | . . . . Robots Hacked . | . . . . Non-combat . | . . . . Combat . | . . . . Robot Hacks Applied . | . . . . Relay Couplers Released . | . . . . Fabnet Peak Effective % . | . . . . Robots Rewired . | . . . . Allies Hacked . | . . . . Hacks Repelled . | . . . . Allies | -11 -10 -10 -9 -------- Run | Yrd Mat Min Mat Total Allies . | . . . . Largest Group . | . . . . Highest-Rated Group . | . . . . Highest-Rated Ally . | . . . . Total Orders . | . . . . Ally Attacks . | . . . . Total Damage . | . . . . Kills . | . . . . Allies Corrupted . | . . . . Allies Melted . | . . . . Intel | -11 -10 -10 -9 ------- Run | Yrd Mat Min Mat Active Infowar (turns) 971 | . 127 512 332 Sensors 933 | . 127 512 294 Terrain 332 | . . . 332 Robot Analysis Total . | . . . . Derelict Logs Recovered 2 | . . 2 . Drone Launches . | . . . . Drone Recoveries . | . . . . Exploration | -11 -10 -10 -9 ------------- Run | Yrd Mat Min Mat Turns Passed 2034 | 82 920 512 520 Spaces Moved 1011 | 67 466 253 225 Core 32 | 26 . . 6 Treads . | . . . . Legs 979 | 41 466 253 219 Wheels . | . . . . Hover . | . . . . Flight . | . . . . Fastest Speed 50 | 50 120 190 190 Average Speed 183 | 101 181 190 204 Slowest Speed 400 | 120 190 190 400 Overloaded Moves . | . . . . Propulsion Burnouts . | . . . . Robots Hopped . | . . . . Potential Cave-ins . | . . . . Cave-ins Triggered . | . . . . Exploration Rate (%) 31 | 5 57 43 20 Regions Visited 3 Branch Regions 1 Pre-discovered Areas 1 | . . 1 . Known Exits Taken 1 | . 1 . . Unknown Exits Taken 2 | 1 . 1 . Scrap Searched 1 | . . 1 . Spaces Dug . | . . . . Terrain Destroyed . | . . . . Melee . | . . . . Projectile . | . . . . AOE . | . . . . Terrain Rammed . | . . . . Walls Destroyed . | . . . . Machines Disabled . | . . . . Actions | -11 -10 -10 -9 --------- Run | Yrd Mat Min Mat Total 1104 | 80 501 269 254 Wait . | . . . . Move 1008 | 66 465 252 225 Hop . | . . . . Pick Up 20 | 8 8 3 1 Fast Attach 2 | 2 . . . Attach 16 | 4 3 . 9 Detach 1 | . 1 . . Swap 5 | . . 4 1 Drop 5 | . 3 2 . Fire 44 | . 20 7 17 Melee . | . . . . Ram . | . . . . Kick 3 | . 1 1 1 Crush . | . . . . Escape Stasis . | . . . . Rewire . | . . . . Trap . | . . . . Miscellaneous . | . . . . Route ------- -11/Scrapyard -10/Materials (discovered 2 exits: *Min x2) -10/Mines -9/Materials History --------- Turn | Location | Event 7 | -11/Scrapyard | Discovered new exit (range 15) 83 | -11/Scrapyard | Entered Materials 107 | -10/Materials | Identified exit to Mines 302 | -10/Materials | Build established: Mutant 1003 | -10/Materials | Entered Mines 1004 | -10/Mines | Assembled infested the area 1158 | -10/Mines | Found DCF Scrap (14 items) 1178 | -10/Mines | Learned Materials emergency access door positions 1449 | -10/Mines | Discovered new exit (range 9) 1515 | -10/Mines | Entered Materials 1515 | -9/Materials | Evolved 2 slots: Power x1, Utility x1 1580 | -9/Materials | Repaired Med. Laser? 1898 | -9/Materials | Lost 7 parts (2p2n1u2w) 1948 | -9/Materials | Core integrity fell below 50% 2025 | -9/Materials | Core integrity fell below 20% 2035 | -9/Materials | Destroyed by G-34 Mercenary with Small Laser Last Messages --------------- K-01 Serf cleans the Nuclear Reactor. K-01 Serf collects debris. Ion Engine destroyed. Aluminum Leg destroyed. K-01 Serf collects debris. ALERT: Hostiles spotted, dispatching reinforcements to Terminal M009. K-01 Serf collects debris. [Achievement: There's More Where That Came From] C-30 ARC bursts open, deploying its payload. G-34 Mercenary unfolds itself. Kicked A-02 Transporter. Acquired 25 matter. Aluminum Leg destroyed. System corrupted by crushing effect (+4). Signal Interpreter destroyed. System corrupted by crushing effect (+1). Lgt. Treads melted. B-36 Bruiser destroyed. Beam Cannon destroyed. Map ----- +----------------------------------------------------+ | ????????????????????????????????????????????? | | ????????????????????????????????????????????? | | ????????????????????????????????????????????? | | ????????????????????????????????????????????? | | ????????????????????????????????????????????? | | ????????????????????????????????????????????? | | ????????????????????????????????????????????? | | ????????????????????????????????????????????? | | ????????????????????????????????????????????? | | ????????????????????????????????????????????? | | ????????????????????????????????????????????? | | ????????????????????????????????????????????? | | ????????????????????????????????????????????? | | ????????????????????????????????????????????? | | ?????????????????????????????????" ?????????? | | ????????????????????????????????""??????????? | | ??????????????????????????????? ???????????? | | ?????????????????????????######+###??#??????? | | ?????????????????????????# ?? """ ???? | | ?????????????????????????# """" "T" ???? | | ?????????????????????????# """" ???? | | ?????????????????????????# g """" ???? | | ?????????????????????????# ????? | | ?????????????????????????# """" """" #??? | | ?????????????????#+#######o """" """" #??? | | ??????+?????????# tw @% """" """" #??? | | ????????????????# ###### g #??? | | ?????????????????????????# gY #??? | | ?????????????????????############+########### | | ?????????????????????# # / # | | ?????????????????????# """ # # / # | | ?????????????????????# """ # # # | | ?????????????????????# """ + + # | | ?????????????????????# # ^^^# # | | ?????????????????????# """ # ^ # # | | ?????????????????????# """ # # # | | ?????????????????????# """ # # # | | ?????????????????????# # # # | | ?????????????????????#+######## # # | | ?????????#?? ????????# #??????# # # | | ???????????? ##??????# #??????# ######### | | ???????????? #???????# #??????# #???????? | | ???????????# #???????# #??????# #???????? | | ???????????# #??????##/##?????# #???????? | | ???????????# #???? ?# #?????# #???????? | | ???????????# #?? ???# #????? #???????? | | ???????? ??# #??????# #?????# #???????? | | ?????"?? ??# ##?????# #?? ??? ????????? | | ???????????+ ? ???+ #???????????????????? | | ?????? ? ??# #??????# #???????????????????? | +----------------------------------------------------+ Best States ------------- Heat Dissipation 28 Energy Generation 19 Energy Capacity 310 Matter Stores 300 Matter Capacity 300 Sight Range 16 Robot Scan Range 14 Terrain Scan Range 16 Terrain Scan Density 10 Resistance: KI 20 Resistance: TH 20 Resistance: EX 20 Resistance: EM 20 Resistance: I 20 Resistance: S 20 Resistance: P 20 Evasion (%) 55 Offensive Hacking 10 Item Schematics ----------------- None Robot Schematics ------------------ None Fabricated ------------ Nothing Repaired ---------- Med. Laser | 67% | -9/Materials Studied --------- None Alien Tech Used ----------------- None Achievements -------------- For Emergencies Only I Survived The Infestation There's More Where That Came From Challenges ------------ None Game ------ Seed AlphaTeslaBox Manual? 0 Play Time 00:18:40 Cumulative 5.0 hours Start 2026.03.05 @ 17:57:13 End 2026.03.05 @ 18:51:07 Sessions 4 Manual Loads 0 Difficulty Adventurer Special Mode None Game No. 11 Rogue 0 Adventurer 11 Explorer 0 Win Type - Total 0 Types 0/0/0/0/0/0/0/0/0/0 Lore% 9 Gallery% 12 Achievement% 8 Wizard Run 0 Options --------- Layout 1 ASCII 0 Keyboard 0 Movement Arrows Keybinds 0 Fullscreen 1 Font 24/Smallcaps Map View 50x35 Zoom Use 0% Tactical HUD 0 Map Filters NONE Filters NONE Steam 1 RUN: 2beaa3f7-fe68-4bb8-845b-956d7553b43c